Workbook

Sheet 目录
B1: 沅江市人民政府2022年预算公开目录
A2: 1 | B2: 2022年地方一般公共预算收入表
A3: 2 | B3: 2022年预计上级专项补助纳入预算明细表
A4: 2-1 | B4: 2022年一般公共预算专项转移支付表（分地区）
A5: 2-2 | B5: 2022年一般公共预算专项转移支付表（分项目）
A6: 3 | B6: 2022年一般公共预算收支总表
A7: 4-1 | B7: 2022年一般公共预算收入表
A8: 4-2 | B8: 2022年一般公共预算支出表
A9: 5 | B9: 2022年一般公共预算本级支出表
A10: 6 | B10: 2022年一般公共预算基本支出总表（按部门预算经济分类）
A11: 7 | B11: 2022年一般公共预算税收返还和转移支付表
A12: 8 | B12: 2021年度政府一般债券限额表
A13: 9 | B13: 2021年度政府一般债券余额表
A14: 10 | B14: 2022年政府性基金预算收支总表
A15: 11-1 | B15: 2022年政府性基金预算收入表
A16: 11-2 | B16: 2022年政府性基金预算支出表
A17: 12 | B17: 2022年本级政府性基金支出表
A18: 13 | B18: 2022年沅江市政府性基金转移支付表
A19: 13-1 | B19: 2022年沅江市政府性基金转移支付表（分地区）
A20: 13-2 | B20: 2022年沅江市政府性基金转移支付表（分项目）
A21: 14 | B21: 2021年度政府专项债券限额表
A22: 15 | B22: 2021年度政府专项债券余额表
A23: 16 | B23: 2022年沅江市国有资本经营预算收支总表
A24: 17 | B24: 2022年沅江市国有资本经营预算收入表
A25: 18 | B25: 2022年沅江市国有资本经营预算支出表
A26: 18-1 | B26: 2022年本级国有资本经营预算支出表
A27: 18-2 | B27: 2022年国有资本经营预算转移支付表
A28: 19 | B28: 2022年社会保险基金预算收支总表
A29: 20 | B29: 2022年社会保险基金预算收入表
A30: 21 | B30: 2022年社会保险基金预算支出表
A31: 22 | B31: 2021年沅江市政府债券还本付息明细表
A32: 23 | B32: 2021年一般债券资金使用安排情况表
A33: 24 | B33: 2021年专项债券资金使用安排情况表
A34: 25 | B34: 2022年沅江市政府债券还本付息明细表

Sheet 表1
A2: 2022年地方一般公共预算收入表
B3: 单位：万元
A4: 项 目 | B4: 2022年预算数
A5: 一、税收收入 | B5: 62850
A6: 增值税 | B6: 25700
A7: 营业税
A8: 企业所得税 | B8: 5600
A9: 企业所得税退税
A10: 个人所得税 | B10: 950
A11: 资源税 | B11: 4700
A12: 城市维护建设税 | B12: 4800
A13: 房产税 | B13: 1650
A14: 印花税 | B14: 900
A15: 城镇土地使用税 | B15: 1400
A16: 土地增值税 | B16: 4850
A17: 车船税 | B17: 1400
A18: 耕地占用税 | B18: 2800
A19: 契税 | B19: 8000
A20: 环境保护税 | B20: 100
A21: 其他税收收入
A22: 二、非税收入 | B22: 116412
A23: 专项收入 | B23: 5830
A24: 行政事业性收费收入 | B24: 5400
A25: 罚没收入 | B25: 6600
A26: 国有资本经营收入
A27: 国有资源（资产）有偿使用收入 | B27: 97982
A28: 其他收入 | B28: 600
A29: 收 入 合 计 | B29: 179262
A30: 上划中央收入小计 | B30: 48333
A31: 上划中央国内增值税（50%部分） | B31: 34267
A32: 上划中央消费税（100%部分） | B32: 30
A33: 上划中央所得税（60%部分） | B33: 14036
A34: 上划中央其他税（50%部分）
A35: 上划省收入小计 | B35: 13583
A36: 上划省国内增值税（12.5%部分） | B36: 8566
A37: 上划省环境保护税（30%部分） | B37: 43
A38: 上划省所得税（12%部分） | B38: 2807
A39: 上划省城镇土地使用税税（30%部分） | B39: 600
A40: 上划省资源税（25%部分） | B40: 1567
A41: 上划省其他税（12.5%部分）
A42: 地方财税收入合计 | B42: 241178
A43: 税收收入(100%) | B43: 124766
A44: 非税收入(100%) | B44: 116412

Sheet 表2
A2: 2022年预计上级转移支付纳入预算明细表 (指定用途)
A3: 预算股编 | C3: 单位:万元
A4: 科目名称 | B4: 代码 | C4: 金额
A5: 教育共同财政事权转移支付收入 | B5: 205 | C5: 12690
A6: 学前教育 | B6: 2050201 | C6: 2400
A7: 义务教育公用经费 | B7: 2050202 | C7: 690
A8: 义务教育薄弱环节改造提升 | B8: 2050202 | C8: 3500
A9: 农村义务教育阶段学校教师特设岗位计划中补助 | B9: 2050202 | C9: 1600
A10: 乡村中小学教师人才津贴补助资金 | B10: 2050202 | C10: 500
A11: 家庭经济困难学生生活补助 | B11: 2050202 | C11: 600
A12: 其他义务教育经费 | B12: 2050202 | C12: 1800
A13: 高中教育 | B13: 2050204 | C13: 300
A14: 学生资助（高中340万，中职460万） | B14: 2050302 | C14: 800
A15: 中等职业教育 | B15: 2050302 | C15: 500
A16: 教育支出（专项转移支付） | B16: 205 | C16: 200
A17: 其他普通教育支出 | B17: 2050202 | C17: 200
A18: 文化旅游体育与传媒支出（专项转移支付） | B18: 207 | C18: 150
A19: 农村文化建设 | B19: 2070199 | C19: 150
A20: 社会保障与就业共同财政事权转移支付收入 | B20: 208 | C20: 30000
A21: 优抚对象抚恤 | B21: 2080899 | C21: 4300
A22: 就业补助 | B22: 2080799 | C22: 2200
A23: 退役士兵安置 | B23: 2080901 | C23: 900
A24: 民政转移支付-残疾人两项补贴 | B24: 2081107 | C24: 500
A25: 困难群众最低生活保障 | B25: 2081901/02 | C25: 6700
A26: 民政转移支付-特困群众救助 | B26: 2082101/02 | C26: 4400
A27: 城乡居民社会养老保险 | B27: 2082602 | C27: 11000
A28: 社会保障和就业支出（专项转移支付） | B28: 208 | C28: 1000
A29: 其他就业补助 | B29: 2080799 | C29: 700
A30: 老年福利 | B30: 2081002 | C30: 100
A31: 殡葬 | B31: 2081004 | C31: 100
A32: 其他残疾人事业 | B32: 2081199 | C32: 100
A33: 卫生健康共同财政事权转移支付收入 | B33: 210 | C33: 42000
A34: 基层医疗卫生机构运行 | B34: 2100399 | C34: 1000
A35: 公立医院 | B35: 2100202 | C35: 700
A36: 基本公共卫生服务 | B36: 2100408 | C36: 5000
A37: 重大公共卫生服务 | B37: 2100409 | C37: 800
A38: 计划生育服务扶持资金（奖扶、特扶） | B38: 2100799 | C38: 900
A39: 城乡居民基本医疗保险 | B39: 2101202 | C39: 33000
A40: 城乡医疗救助 | B40: 2101301 | C40: 600
A41: 卫生健康支出（专项转移支付） | B41: 210 | C41: 500
A42: 计划生育服务 | B42: 2100799 | C42: 500
A43: 节能环保支出（专项转移支付） | B43: 211 | C43: 10000
A44: 污染防治支出 | B44: 2110302 | C44: 1000
A45: 水体 | B45: 2110302 | C45: 4000
A46: 农村环境保护 | B46: 2110402 | C46: 1000
A47: 污染减排支出 | B47: 2111199 | C47: 4000
A48: 革命老区转移支付收入 | B48: 213 | C48: 1600
A49: 革命老区转移支付支出 | B49: 2130199 | C49: 1600
A50: 贫困地区转移支付收入 | B50: 213 | C50: 3200
A51: 专项扶贫资金 | B51: 2130599 | C51: 3200
A52: 农林水共同财政事权转移支付收入 | B52: 213 | C52: 32430
A53: 禁捕退捕 | B53: 2130135 | C53: 1700
A54: 动物疫病防控 | B54: 2130108 | C54: 300
A55: 救灾资金 | B55: 2130108 | C55: 500
A56: 农机购置补贴资金 | B56: 2130122 | C56: 1100
A57: 农业生产发展 | B57: 2130122 | C57: 6130
A58: 渔业发展资金 | B58: 2130122 | C58: 1700
A59: 耕地地力保护补贴资金 | B59: 2130122 | C59: 12000
A60: 农田水利建设 | B60: 2130153 | C60: 3000
A61: 农业保险保费补贴 | B61: 2130803 | C61: 3000
A62: 稻谷目标价格补贴资金 | B62: 2130999 | C62: 3000
A63: 农林水支出（专项转移支付） | B63: 213 | C63: 10000
A64: 创业担保贴息 | B64: 2130804 | C64: 800
A65: 农田建设 | B65: 2130153 | C65: 3000
A66: 农业生产发展 | B66: 2130122 | C66: 2000
A67: 其他农业支出 | B67: 2130199 | C67: 4200
A68: 交通运输共同财政事权转移支付收入 | B68: 214 | C68: 5949
A69: 交通运输事业发展专项补助 | B69: 2140104 | C69: 1250
A70: 车辆购置税收入补助 | B70: 2140199 | C70: 4699
A71: 交通运输支出（专项转移支付） | B71: 214 | C71: 2000
A72: 公路养护 | B72: 2140103 | C72: 1000
A73: 公路建设 | B73: 2140104 | C73: 1000
A74: 资源勘探信息支出（专项转移支付） | B74: 215 | C74: 1000
A75: 其他资源勘探工业信息等支出 | B75: 2159999 | C75: 1000
A76: 住房保障共同财政事权转移支付收入 | B76: 221 | C76: 2675
A77: 公租房、廉租房和棚户区改造 | B77: 2210103 | C77: 1675
A78: 农村危房改造 | B78: 2210103 | C78: 1000
A79: 住房保障支出 | B79: 221 | C79: 2000
A80: 老旧小区改造 | B80: 2210108 | C80: 2000
A81: 产粮(油)大县奖励资金收入 | B81: 222 | C81: 4453
A82: 产粮大县奖励资金 | B82: 2220199 | C82: 2453
A83: 产油大县奖励资金 | B83: 2220199 | C83: 2000
A84: 其他一般性转移支付收入 | B84: 229 | C84: 1000
A85: 选调生到村任职补助（三支一扶） | B85: 2299999 | C85: 17
A86: 地方美术馆、公共图书馆、文化馆免费开放 | B86: 2079999 | C86: 114
A87: 生猪调出大县奖励 | B87: 2160299 | C87: 500
A88: 农村客运和出租车油价补贴 | B88: 2140199 | C88: 369
A89: 合计 | C89: 162847

Sheet 表2-1
A2: 沅江市2022年一般公共预算专项转移支付表（分地区）
B3: 单位：万元
A4: 地区 | B4: 预算数
A5: 合计 | B5: =SUM(B6:B17) -> 0
A6: 胭脂湖街道
A7: 琼湖街道
A8: 新湾镇
A9: 南嘴镇
A10: 草尾镇
A11: 阳罗洲镇
A12: 四季红镇
A13: 黄茅洲镇
A14: 南大膳镇
A15: 共华镇
A16: 泗湖山镇
A17: 茶盘洲镇
A18: 说明：我市纳入预算的上级转移支付收入未对乡镇进行分配。

Sheet 表2-2
A2: 2022年预计上级转移支付支出明细表 (指定用途)
A3: 预算股编 | B3: 单位:万元
A4: 科目名称 | B4: 金额
A5: 学前教育 | B5: 2400
A6: 义务教育公用经费 | B6: 690
A7: 义务教育薄弱环节改造提升 | B7: 3500
A8: 农村义务教育阶段学校教师特设岗位计划中补助 | B8: 1600
A9: 乡村中小学教师人才津贴补助资金 | B9: 500
A10: 家庭经济困难学生生活补助 | B10: 600
A11: 其他义务教育经费 | B11: 1800
A12: 高中教育 | B12: 300
A13: 学生资助（高中340万，中职460万） | B13: 800
A14: 中等职业教育 | B14: 500
A15: 其他普通教育支出 | B15: 200
A16: 农村文化建设 | B16: 150
A17: 优抚对象抚恤 | B17: 4300
A18: 就业补助 | B18: 2200
A19: 退役士兵安置 | B19: 900
A20: 民政转移支付-残疾人两项补贴 | B20: 500
A21: 困难群众最低生活保障 | B21: 6700
A22: 民政转移支付-特困群众救助 | B22: 4400
A23: 城乡居民社会养老保险 | B23: 11000
A24: 其他就业补助 | B24: 700
A25: 老年福利 | B25: 100
A26: 殡葬 | B26: 100
A27: 其他残疾人事业 | B27: 100
A28: 基层医疗卫生机构运行 | B28: 1000
A29: 公立医院 | B29: 700
A30: 基本公共卫生服务 | B30: 5000
A31: 重大公共卫生服务 | B31: 800
A32: 计划生育服务扶持资金（奖扶、特扶） | B32: 900
A33: 城乡居民基本医疗保险 | B33: 33000
A34: 城乡医疗救助 | B34: 600
A35: 计划生育服务 | B35: 500
A36: 污染防治支出 | B36: 1000
A37: 水体 | B37: 4000
A38: 农村环境保护 | B38: 1000
A39: 污染减排支出 | B39: 4000
A40: 革命老区转移支付支出 | B40: 1600
A41: 专项扶贫资金 | B41: 3200
A42: 禁捕退捕 | B42: 1700
A43: 动物疫病防控 | B43: 300
A44: 救灾资金 | B44: 500
A45: 农机购置补贴资金 | B45: 1100
A46: 农业生产发展 | B46: 6130
A47: 渔业发展资金 | B47: 1700
A48: 耕地地力保护补贴资金 | B48: 12000
A49: 农田水利建设 | B49: 3000
A50: 农业保险保费补贴 | B50: 3000
A51: 稻谷目标价格补贴资金 | B51: 3000
A52: 创业担保贴息 | B52: 800
A53: 农田建设 | B53: 3000
A54: 农业生产发展 | B54: 2000
A55: 其他农业支出 | B55: 4200
A56: 交通运输事业发展专项补助 | B56: 1250
A57: 车辆购置税收入补助 | B57: 4699
A58: 公路养护 | B58: 1000
A59: 公路建设 | B59: 1000
A60: 其他资源勘探工业信息等支出 | B60: 1000
A61: 公租房、廉租房和棚户区改造 | B61: 1675
A62: 农村危房改造 | B62: 1000
A63: 住房保障支出 | B63: 2000
A64: 老旧小区改造 | B64: 2000
A65: 产粮(油)大县奖励资金收入 | B65: 4453
A66: 产粮大县奖励资金 | B66: 2453
A67: 产油大县奖励资金 | B67: 2000
A68: 其他一般性转移支付收入 | B68: 1000
A69: 选调生到村任职补助（三支一扶） | B69: 17
A70: 地方美术馆、公共图书馆、文化馆免费开放 | B70: 114
A71: 生猪调出大县奖励 | B71: 500
A72: 农村客运和出租车油价补贴 | B72: 369
A73: 合计 | B73: 162847

Sheet 表3
A1: 表3
A2: 2022年一般公共预算收支总表
D3: 单位：万元
A4: 收 入 | C4: 支 出
A5: 项 目 | B5: 预算数 | C5: 项 目 | D5: 预算数
A6: 本级收入合计 | B6: 179262 | C6: 本级支出合计 | D6: 466080
A7: 转移性收入 | B7: 286754
A8: 上级补助收入 | B8: 286754 | C8: 转移性支出 | D8: 7186
A9: 返还性收入 | B9: 7869 | C9: 上解上级支出 | D9: 7186
A10: 增值税和消费税税收返还收入 | B10: 4059 | C10: 体制上解支出 | D10: 580
A11: 所得税基数返还收入 | B11: 726 | C11: 出口退税专项上解支出 | D11: 155
A12: 成品油价格和税费改革税收返还收入 | B12: 1112 | C12: 成品油价格和税费改革专项上解支出
A13: 其他税收返还收入 | B13: 1972 | C13: 专项上解支出 | D13: 6451
A14: 一般性转移支付收入 | B14: 252035
A15: 均衡性转移支付收入 | B15: 56000
A16: 调整工资转移支付补助收入 | B16: 17954
A17: 固定基数补助收入（农村税改） | B17: 10286
A18: 县级基本财力保障机制奖补资金收入 | B18: 23000
A19: 结算补助收入 | B19: 3058
A20: 产粮(油)大县奖励资金收入 | B20: 4453
A21: 重点生态功能区转移支付收入 | B21: 2902
A22: 革命老区转移支付收入 | B22: 1600
A23: 贫困地区转移支付收入 | B23: 3200
A24: 公共安全共同财政事权转移支付收入 | B24: 928
A25: 教育共同财政事权转移支付收入 | B25: 14000
A26: 社会保障与就业共同财政事权转移支付收入 | B26: 30000
A27: 卫生健康共同财政事权转移支付收入 | B27: 42000
A28: 农林水共同财政事权转移支付收入 | B28: 33030
A29: 交通运输共同财政事权转移支付收入 | B29: 5949
A30: 住房保障共同财政事权转移支付收入 | B30: 2675
A31: 其他一般性转移支付收入 | B31: 1000
A32: 专项转移支付收入 | B32: 26850
A33: 一般公共服务支出
A34: 公共安全支出
A35: 教育支出 | B35: 200
A36: 科学技术支出
A37: 科技支出
A38: 文化旅游体育与传媒支出 | B38: 150
A39: 社会保障和就业支出 | B39: 1000
A40: 卫生健康支出 | B40: 500
A41: 节能环保支出 | B41: 10000
A42: 城乡社区支出
A43: 农林水支出 | B43: 10000 | C43: 地方政府一般债券还本支出
A44: 交通运输支出 | B44: 2000 | C44: 转贷地方政府债券支出
A45: 商业服务业等支出 | C45: 援助其他地区支出
A46: 资源勘探信息支出 | B46: 1000
A47: 住房保障支出 | B47: 2000
A48: 粮油物资储备支出
A49: 调入资金 | B49: 7250
A50: 政府性基金调入 | B50: 7250
A51: 其他调入（盘活存量）
A52: 债务转贷收入
A53: 调入预算稳定调节基金
A55: 收入总计 | B55: 473266 | C55: 支出总计 | D55: 473266

Sheet 表4-1
A1: 表4-1
A2: 2022年一般公共预算收入表
A4: 收 入
A5: 项 目 | B5: 预算数
A6: 本级收入合计 | B6: 179262
A7: 转移性收入 | B7: 286754
A8: 上级补助收入 | B8: 286754
A9: 返还性收入 | B9: 7869
A10: 增值税和消费税税收返还收入 | B10: 4059
A11: 所得税基数返还收入 | B11: 726
A12: 成品油价格和税费改革税收返还收入 | B12: 1112
A13: 其他税收返还收入 | B13: 1972
A14: 一般性转移支付收入 | B14: 252035
A15: 均衡性转移支付收入 | B15: 56000
A16: 调整工资转移支付补助收入 | B16: 17954
A17: 固定基数补助收入（农村税改） | B17: 10286
A18: 县级基本财力保障机制奖补资金收入 | B18: 23000
A19: 结算补助收入 | B19: 3058
A20: 产粮(油)大县奖励资金收入 | B20: 4453
A21: 重点生态功能区转移支付收入 | B21: 2902
A22: 革命老区转移支付收入 | B22: 1600
A23: 贫困地区转移支付收入 | B23: 3200
A24: 公共安全共同财政事权转移支付收入 | B24: 928
A25: 教育共同财政事权转移支付收入 | B25: 14000
A26: 社会保障与就业共同财政事权转移支付收入 | B26: 30000
A27: 卫生健康共同财政事权转移支付收入 | B27: 42000
A28: 农林水共同财政事权转移支付收入 | B28: 33030
A29: 交通运输共同财政事权转移支付收入 | B29: 5949
A30: 住房保障共同财政事权转移支付收入 | B30: 2675
A31: 其他一般性转移支付收入 | B31: 1000
A32: 专项转移支付收入 | B32: 26850
A33: 一般公共服务支出
A34: 公共安全支出
A35: 教育支出 | B35: 200
A36: 科学技术支出
A37: 科技支出
A38: 文化旅游体育与传媒支出 | B38: 150
A39: 社会保障和就业支出 | B39: 1000
A40: 卫生健康支出 | B40: 500
A41: 节能环保支出 | B41: 10000
A42: 城乡社区支出
A43: 农林水支出 | B43: 10000
A44: 交通运输支出 | B44: 2000
A45: 商业服务业等支出
A46: 资源勘探信息支出 | B46: 1000
A47: 住房保障支出 | B47: 2000
A48: 粮油物资储备支出
A49: 调入资金 | B49: 7250
A50: 政府性基金调入 | B50: 7250
A51: 其他调入（盘活存量）
A52: 债务转贷收入
A53: 调入预算稳定调节基金
A55: 收入总计 | B55: 473266

Sheet 表4-2
A2: 2022年一般公共预算支出表
B3: 单位：万元
A4: 支 出
A5: 项 目 | B5: 预算数
A6: 本级支出合计 | B6: 466080
A8: 转移性支出 | B8: 7186
A9: 上解上级支出 | B9: 7186
A10: 体制上解支出 | B10: 580
A11: 出口退税专项上解支出 | B11: 155
A12: 成品油价格和税费改革专项上解支出
A13: 专项上解支出 | B13: 6451
A15: 地方政府一般债券还本支出
A16: 转贷地方政府债券支出
A17: 援助其他地区支出
A20: 支出总计 | B20: 473266

Sheet 表5
A1: 表5
A2: 2022年一般公共预算本级支出表
A4: 项目 | C4: 上年预算数 | D4: 预算数
A5: 代码 | B5: 名称 | D5: 金额
A6: 201 | B6: 一般公共服务 | C6: 53215 | D6: 67332
A7: 20101 | B7: 人大事务 | C7: 608 | D7: 821
A8: 2010101 | B8: 行政运行 | C8: 393 | D8: 561
A9: 2010102 | B9: 一般行政管理事务 | C9: 52 | D9: 40
A10: 2010103 | B10: 机关服务 | C10: 5
A11: 2010104 | B11: 人大会议 | C11: 24 | D11: 24
A12: 2010105 | B12: 人大立法
A13: 2010106 | B13: 人大监督 | C13: 62 | D13: 50
A14: 2010107 | B14: 人大代表履职能力提升 | D14: 40
A15: 2010108 | B15: 代表工作 | C15: 72 | D15: 28
A16: 2010109 | B16: 人大信访工作
A17: 2010150 | B17: 事业运行 | D17: 42
A18: 2010199 | B18: 其他人大事务支出 | D18: 36
A19: 20102 | B19: 政协事务 | C19: 574 | D19: 589
A20: 2010201 | B20: 行政运行 | C20: 396 | D20: 401
A21: 2010202 | B21: 一般行政管理事务 | C21: 69 | D21: 40
A22: 2010203 | B22: 机关服务
A23: 2010204 | B23: 政协会议 | D23: 20
A24: 2010205 | B24: 委员视察 | D24: 46
A25: 2010206 | B25: 参政议政
A26: 2010250 | B26: 事业运行
A27: 2010299 | B27: 其他政协事务支出 | C27: 109 | D27: 82
A28: 20103 | B28: 政府办公厅(室)及相关机构事务 | C28: 30489 | D28: 43495
A29: 2010301 | B29: 行政运行 | C29: 23982 | D29: 35838
A30: 2010302 | B30: 一般行政管理事务 | C30: 4557 | D30: 7389
A31: 2010303 | B31: 机关服务 | C31: 335
A32: 2010304 | B32: 专项服务
A33: 2010305 | B33: 专项业务及机关事务管理 | C33: 1218
A34: 2010306 | B34: 政务公开审批 | C34: 144
A35: 2010308 | B35: 信访事务 | C35: 108 | D35: 218
A36: 2010309 | B36: 参事事务
A37: 2010350 | B37: 事业运行
A38: 2010399 | B38: 其他政府办公厅（室）及相关机构事务支出 | C38: 145 | D38: 50
A39: 20104 | B39: 发展与改革事务 | C39: 2324 | D39: 1897
A40: 2010401 | B40: 行政运行 | C40: 779 | D40: 755
A41: 2010402 | B41: 一般行政管理事务 | C41: 145 | D41: 142
A42: 2010403 | B42: 机关服务
A43: 2010404 | B43: 战略规划与实施 | C43: 1000 | D43: 1000
A44: 2010405 | B44: 日常经济运行调节
A45: 2010406 | B45: 社会事业发展规划
A46: 2010407 | B46: 经济体制改革研究
A47: 2010408 | B47: 物价管理
A48: 2010450 | B48: 事业运行
A49: 2010499 | B49: 其他发展与改革事务支出 | C49: 400
A50: 20105 | B50: 统计信息事务 | C50: 552 | D50: 260
A51: 2010501 | B51: 行政运行 | C51: 198 | D51: 190
A52: 2010502 | B52: 一般行政管理事务 | C52: 6 | D52: 70
A53: 2010503 | B53: 机关服务
A54: 2010504 | B54: 信息事务 | C54: 150
A55: 2010505 | B55: 专项统计业务 | C55: 32
A56: 2010506 | B56: 统计管理
A57: 2010507 | B57: 专项普查活动 | C57: 150
A58: 2010508 | B58: 统计抽样调查 | C58: 16
A59: 2010550 | B59: 事业运行
A60: 2010599 | B60: 其他统计信息事务支出
A61: 20106 | B61: 财政事务 | C61: 3955 | D61: 3971
A62: 2010601 | B62: 行政运行 | C62: 1952 | D62: 2020
A63: 2010602 | B63: 一般行政管理事务 | C63: 1062 | D63: 861
A64: 2010603 | B64: 机关服务
A65: 2010604 | B65: 预算改革业务
A66: 2010605 | B66: 财政国库业务 | C66: 40
A67: 2010606 | B67: 财政监察
A68: 2010607 | B68: 信息化建设 | C68: 896 | D68: 1090
A69: 2010608 | B69: 财政委托业务支出
A70: 2010650 | B70: 事业运行
A71: 2010699 | B71: 其他财政事务支出 | C71: 5
A72: 20107 | B72: 税收事务 | C72: 4000 | D72: 6000
A73: 2010701 | B73: 行政运行
A74: 2010702 | B74: 一般行政管理事务
A75: 2010703 | B75: 机关服务
A76: 2010709 | B76: 信息化建设
A77: 2010710 | B77: 税收业务
A78: 2010750 | B78: 事业运行
A79: 2010799 | B79: 其他税收事务支出 | C79: 4000 | D79: 6000
A80: 20108 | B80: 审计事务 | C80: 587 | D80: 614
A81: 2010801 | B81: 行政运行 | C81: 401 | D81: 398
A82: 2010802 | B82: 一般行政管理事务 | C82: 50 | D82: 36
A83: 2010803 | B83: 机关服务
A84: 2010804 | B84: 审计业务 | C84: 136 | D84: 180
A85: 2010805 | B85: 审计管理
A86: 2010806 | B86: 信息化建设
A87: 2010850 | B87: 事业运行
A88: 2010899 | B88: 其他审计事务支出
A89: 20109 | B89: 海关事务 | C89: 0 | D89: 0
A90: 2010901 | B90: 行政运行
A91: 2010902 | B91: 一般行政管理事务
A92: 2010903 | B92: 机关服务
A93: 2010905 | B93: 缉私办案
A94: 2010907 | B94: 口岸管理
A95: 2010908 | B95: 信息化建设
A96: 2010909 | B96: 海关关务
A97: 2010910 | B97: 关税征管
A98: 2010911 | B98: 海关监管
A99: 2010912 | B99: 检验检疫
A100: 2010950 | B100: 事业运行
A101: 2010999 | B101: 其他海关事务支出
A102: 20111 | B102: 纪检监察事务 | C102: 1605 | D102: 1568
A103: 2011101 | B103: 行政运行 | C103: 1228 | D103: 1281
A104: 2011102 | B104: 一般行政管理事务 | C104: 377 | D104: 287
A105: 2011103 | B105: 机关服务
A106: 2011104 | B106: 大案要案查处
A107: 2011105 | B107: 派驻派出机构
A108: 2011106 | B108: 巡视工作
A109: 2011150 | B109: 事业运行
A110: 2011199 | B110: 其他纪检监察事务支出
A111: 20113 | B111: 商贸事务 | C111: 358 | D111: 300
A112: 2011301 | B112: 行政运行
A113: 2011302 | B113: 一般行政管理事务
A114: 2011303 | B114: 机关服务
A115: 2011304 | B115: 对外贸易管理
A116: 2011305 | B116: 国际经济合作
A117: 2011306 | B117: 外资管理
A118: 2011307 | B118: 国内贸易管理
A119: 2011308 | B119: 招商引资 | C119: 358 | D119: 300
A120: 2011350 | B120: 事业运行
A121: 2011399 | B121: 其他商贸事务支出
A122: 20114 | B122: 知识产权事务 | C122: 0 | D122: 0
A123: 2011401 | B123: 行政运行
A124: 2011402 | B124: 一般行政管理事务
A125: 2011403 | B125: 机关服务
A126: 2011404 | B126: 专利审批
A127: 2011405 | B127: 知识产权战略和规划
A128: 2011408 | B128: 国际合作与交流
A129: 2011409 | B129: 知识产权宏观管理
A130: 2011410 | B130: 商标管理
A131: 2011411 | B131: 原产地地理标志管理
A132: 2011450 | B132: 事业运行
A133: 2011499 | B133: 其他知识产权事务支出
A134: 20123 | B134: 民族事务 | C134: 0 | D134: 0
A135: 2012301 | B135: 行政运行
A136: 2012302 | B136: 一般行政管理事务
A137: 2012303 | B137: 机关服务
A138: 2012304 | B138: 民族工作专项
A139: 2012350 | B139: 事业运行
A140: 2012399 | B140: 其他民族事务支出
A141: 20125 | B141: 港澳台事务 | C141: 0 | D141: 0
A142: 2012501 | B142: 行政运行
A143: 2012502 | B143: 一般行政管理事务
A144: 2012503 | B144: 机关服务
A145: 2012504 | B145: 港澳事务
A146: 2012505 | B146: 台湾事务
A147: 2012550 | B147: 事业运行
A148: 2012599 | B148: 其他港澳台事务支出
A149: 20126 | B149: 档案事务 | C149: 199 | D149: 206
A150: 2012601 | B150: 行政运行 | C150: 129 | D150: 131
A151: 2012602 | B151: 一般行政管理事务 | C151: 70 | D151: 75
A152: 2012603 | B152: 机关服务
A153: 2012604 | B153: 档案馆
A154: 2012699 | B154: 其他档案事务支出
A155: 20128 | B155: 民主党派及工商联事务 | C155: 81 | D155: 95
A156: 2012801 | B156: 行政运行 | C156: 57 | D156: 57
A157: 2012802 | B157: 一般行政管理事务 | C157: 24 | D157: 38
A158: 2012803 | B158: 机关服务
A159: 2012804 | B159: 参政议政
A160: 2012850 | B160: 事业运行
A161: 2012899 | B161: 其他民主党派及工商联事务支出
A162: 20129 | B162: 群众团体事务 | C162: 637 | D162: 607
A163: 2012901 | B163: 行政运行 | C163: 272 | D163: 282
A164: 2012902 | B164: 一般行政管理事务 | C164: 240 | D164: 240
A165: 2012903 | B165: 机关服务
A166: 2012906 | B166: 工会事务
A167: 2012950 | B167: 事业运行 | C167: 75 | D167: 85
A168: 2012999 | B168: 其他群众团体事务支出 | C168: 50
A169: 20131 | B169: 党委办公厅（室）及相关机构事务 | C169: 794 | D169: 985
A170: 2013101 | B170: 行政运行 | C170: 457 | D170: 683
A171: 2013102 | B171: 一般行政管理事务 | C171: 337 | D171: 302
A172: 2013103 | B172: 机关服务
A173: 2013105 | B173: 专项业务
A174: 2013150 | B174: 事业运行
A175: 2013199 | B175: 其他党委办公厅（室）及相关机构事务支出
A176: 20132 | B176: 组织事务 | C176: 687 | D176: 896
A177: 2013201 | B177: 行政运行 | C177: 297 | D177: 325
A178: 2013202 | B178: 一般行政管理事务 | C178: 390 | D178: 519
A179: 2013203 | B179: 机关服务
A180: 2013204 | B180: 公务员事务
A181: 2013250 | B181: 事业运行
A182: 2013299 | B182: 其他组织事务支出 | D182: 52
A183: 20133 | B183: 宣传事务 | C183: 335 | D183: 262
A184: 2013301 | B184: 行政运行 | C184: 154 | D184: 130
A185: 2013302 | B185: 一般行政管理事务 | C185: 181 | D185: 132
A186: 2013303 | B186: 机关服务
A187: 2013304 | B187: 宣传管理
A188: 2013350 | B188: 事业运行
A189: 2013399 | B189: 其他宣传事务支出
A190: 20134 | B190: 统战事务 | C190: 261 | D190: 257
A191: 2013401 | B191: 行政运行 | C191: 218 | D191: 169
A192: 2013402 | B192: 一般行政管理事务 | C192: 21 | D192: 88
A193: 2013403 | B193: 机关服务
A194: 2013404 | B194: 宗教事务 | C194: 10
A195: 2013405 | B195: 华侨事务
A196: 2013450 | B196: 事业运行
A197: 2013499 | B197: 其他统战事务支出 | C197: 12
A198: 20135 | B198: 对外联络事务 | C198: 0 | D198: 0
A199: 2013501 | B199: 行政运行
A200: 2013502 | B200: 一般行政管理事务
A201: 2013503 | B201: 机关服务
... 1047 more rows

Sheet 表6
A2: 2022年一般公共预算本级基本支出表（按部门预算经济分类）
A4: 单位：万元
A5: 部门预算支出经济分类科目 | C5: 本年一般公共预算基本支出
A6: 科目编码 | B6: 科目名称 | C6: 合计 | D6: 人员经费 | E6: 公用经费
A7: 301 | B7: 工资福利支出 | C7: 116,098.13 | D7: 116,098.13
A8: 30108 | B8: 机关事业单位基本养老保险缴费 | C8: 13,277.93 | D8: 13,277.93
A9: 30101 | B9: 基本工资 | C9: 52,022.15 | D9: 52,022.15
A10: 30112 | B10: 其他社会保障缴费 | C10: 1,768.09 | D10: 1,768.09
A11: 30107 | B11: 绩效工资 | C11: 22,062.95 | D11: 22,062.95
A12: 30102 | B12: 津贴补贴 | C12: 11,618.61 | D12: 11,618.61
A13: 30110 | B13: 职工基本医疗保险缴费 | C13: 4,975.95 | D13: 4,975.95
A14: 30103 | B14: 奖金 | C14: 880.04 | D14: 880.04
A15: 30113 | B15: 住房公积金 | C15: 9,415.86 | D15: 9,415.86
A16: 30199 | B16: 其他工资福利支出 | C16: 76.56 | D16: 76.56
A17: 303 | B17: 对个人和家庭的补助 | C17: 3,709.11 | D17: 3,707.81 | E17: 1.30
A18: 30305 | B18: 生活补助 | C18: 805.29 | D18: 805.29
A19: 30307 | B19: 医疗费补助 | C19: 1,944.42 | D19: 1,944.42
A20: 30301 | B20: 离休费 | C20: 225.71 | D20: 225.71
A21: 30302 | B21: 退休费 | C21: 16.26 | D21: 14.96 | E21: 1.30
A22: 30399 | B22: 其他对个人和家庭的补助 | C22: 717.43 | D22: 717.43
A23: 302 | B23: 商品和服务支出 | C23: 7,778.30 | E23: 7,778.30
A24: 30216 | B24: 培训费 | C24: 123.50 | E24: 123.50
A25: 30228 | B25: 工会经费 | C25: 1,280.10 | E25: 1,280.10
A26: 30205 | B26: 水费 | C26: 71.85 | E26: 71.85
A27: 30201 | B27: 办公费 | C27: 1,451.16 | E27: 1,451.16
A28: 30202 | B28: 印刷费 | C28: 431.53 | E28: 431.53
A29: 30299 | B29: 其他商品和服务支出 | C29: 1,128.40 | E29: 1,128.40
A30: 30226 | B30: 劳务费 | C30: 108.70 | E30: 108.70
A31: 30211 | B31: 差旅费 | C31: 924.10 | E31: 924.10
A32: 30213 | B32: 维修（护）费 | C32: 457.75 | E32: 457.75
A33: 30215 | B33: 会议费 | C33: 227.39 | E33: 227.39
A34: 30217 | B34: 公务接待费 | C34: 324.85 | E34: 324.85
A35: 30207 | B35: 邮电费 | C35: 77.20 | E35: 77.20
A36: 30209 | B36: 物业管理费 | C36: 185.84 | E36: 185.84
A37: 30206 | B37: 电费 | C37: 379.00 | E37: 379.00
A38: 30239 | B38: 其他交通费用 | C38: 212.90 | E38: 212.90
A39: 30214 | B39: 租赁费 | C39: 20.50 | E39: 20.50
A40: 30231 | B40: 公务用车运行维护费 | C40: 261.63 | E40: 261.63
A41: 30229 | B41: 福利费 | C41: 47.40 | E41: 47.40
A42: 30204 | B42: 手续费 | C42: 6.00 | E42: 6.00
A43: 30218 | B43: 专用材料费 | C43: 10.00 | E43: 10.00
A44: 30224 | B44: 被装购置费 | C44: 19.00 | E44: 19.00
A45: 30203 | B45: 咨询费 | C45: 28.20 | E45: 28.20
A46: 30227 | B46: 委托业务费 | C46: 1.30 | E46: 1.30
A47: 310 | B47: 资本性支出 | C47: 10.00 | E47: 10.00
A48: 31003 | B48: 专用设备购置 | C48: 5.00 | E48: 5.00
A49: 31002 | B49: 办公设备购置 | C49: 5.00 | E49: 5.00
A50: 合 计 | C50: 127,595.54 | D50: 119,805.94 | E50: 7,789.60

Sheet 表7
A2: 2022年一般公共预算税收返还和转移支付收入表
B3: 单位：万元
A4: 项 目 | B4: 预算数
A5: 上级补助收入 | B5: =SUM(B6,B11,B29) -> 286754
A6: 返还性收入 | B6: =SUM(B7:B10) -> 7869
A7: 增值税和消费税税收返还收入 | B7: 4059
A8: 所得税基数返还收入 | B8: 726
A9: 成品油价格和税费改革税收返还收入 | B9: 1112
A10: 其他税收返还收入 | B10: 1972
A11: 一般性转移支付收入 | B11: =SUM(B12:B28) -> 252035
A12: 均衡性转移支付收入 | B12: 56000
A13: 调整工资转移支付补助收入 | B13: 17954
A14: 固定基数补助收入（农村税改） | B14: 10286
A15: 县级基本财力保障机制奖补资金收入 | B15: 23000
A16: 结算补助收入 | B16: 3058
A17: 产粮(油)大县奖励资金收入 | B17: 4453
A18: 重点生态功能区转移支付收入 | B18: 2902
A19: 革命老区转移支付收入 | B19: 1600
A20: 贫困地区转移支付收入 | B20: 3200
A21: 公共安全共同财政事权转移支付收入 | B21: 928
A22: 教育共同财政事权转移支付收入 | B22: =1310+12690 -> 14000
A23: 社会保障与就业共同财政事权转移支付收入 | B23: 30000
A24: 卫生健康共同财政事权转移支付收入 | B24: 42000
A25: 农林水共同财政事权转移支付收入 | B25: =600+32430 -> 33030
A26: 交通运输共同财政事权转移支付收入 | B26: 5949
A27: 住房保障共同财政事权转移支付收入 | B27: 2675
A28: 其他一般性转移支付收入 | B28: 1000
A29: 专项转移支付收入 | B29: =SUM(B30:B46) -> 26850
A30: 一般公共服务支出
A31: 公共安全支出
A32: 教育支出 | B32: 200
A33: 科学技术支出
A34: 科技支出
A35: 文化旅游体育与传媒支出 | B35: 150
A36: 社会保障和就业支出 | B36: 1000
A37: 卫生健康支出 | B37: 500
A38: 节能环保支出 | B38: 10000
A39: 城乡社区支出
A40: 农林水支出 | B40: 10000
A41: 交通运输支出 | B41: 2000
A42: 资源勘探信息支出 | B42: 1000
A43: 商业服务业等支出
A44: 自然海洋气象等支出
A45: 住房保障支出 | B45: 2000

Sheet 表8
A1: 2021年度限额下达表
O2: 单位：万元
A3: 地区编码 | B3: 地区名称 | C3: 下达日期 | D3: 下达类型 | E3: 债务总限额 | H3: 新增债务限额
E4: 合计 | F4: 一般债务总限额 | G4: 专项债务总限额 | H4: 合计 | I4: 新增一般债务限额 | J4: 其中：新增外债限额 | K4: 新增专项债务限额 | L4: 新增土地储备专项债务限额 | M4: 新增收费公路专项债务限额 | N4: 新增棚改专项债务限额 | O4: 新增其他专项债务限额
A5: 430981 | B5: 沅江市 | C5: 2021-12-31 | D5: 调整 | E5: 513,793.00 | F5: 340,243.00 | G5: 173,550.00 | H5: 102,100.00 | I5: 18,400.00 | J5: 0.00 | K5: 83,700.00 | L5: 0.00 | M5: 0.00 | N5: 0.00 | O5: 0.00
A6: 沅江市小计 | E6: 513,793.00 | F6: 340,243.00 | G6: 173,550.00 | H6: 102,100.00 | I6: 18,400.00 | J6: 0.00 | K6: 83,700.00 | L6: 0.00 | M6: 0.00 | N6: 0.00 | O6: 0.00

Sheet 表9
A1: 截止2021年12月政府债券余额汇总表
A3: 地区：430981 沅江市 | D3: 截止期间：2021年12月 | K3: 单位：万元
A4: 地区 | B4: 余额总计 | C4: 新增债券 | F4: 置换债券 | I4: 偿还到期政府债券
C5: 合计 | D5: 一般债券 | E5: 专项债券 | F5: 合计 | G5: 一般债券 | H5: 专项债券 | I5: 合计 | J5: 一般债券 | K5: 专项债券
A6: 沅江市 | B6: 512,803.66 | C6: 267,693.53 | D6: 94,143.53 | E6: 173,550.00 | F6: 188,200.86 | G6: 188,200.86 | H6: 0.00 | I6: 56,909.27 | J6: 56,909.27 | K6: 0.00

Sheet 表10
A2: 2022年政府性基金预算收支总表
C3: 2021-10-01 | D3: 单位：万元
A4: 收 入 | C4: 支 出
A5: 项 目 | B5: 预算数 | C5: 项 目 | D5: 预算数
A6: 一、农网还贷资金收入 | C6: 一、文化体育与传媒支出
A7: 二、海南省高等级公路车辆通行附加费收入 | C7: 二、社会保障和就业支出 | D7: 4,600
A8: 三、港口建设费收入 | C8: 三、节能环保支出
A9: 四、散装水泥专项资金收入 | C9: 四、城乡社区支出 | D9: 45,330
A10: 五、新型墙体材料专项基金收入 | C10: 国有土地使用权出让收入安排的支出 | D10: 42,750
A11: 六、旅游发展基金收入 | C11: 征地和拆迁补偿支出 | D11: 500
A12: 七、新菜地开发建设基金收入 | C12: 土地开发支出
A13: 八、新增建设用地土地有偿使用费收入 | C13: 城市建设支出 | D13: 5,000
A14: 九、南水北调工程建设基金收入 | C14: 农村基础设施建设支出 | D14: 2,500
A15: 十、城市公用事业附加收入 | C15: 补助被征地农民支出
A16: 十一、国有土地收益基金收入 | C16: 土地出让业务支出 | D16: 1,050
A17: 十二、农业土地开发资金收入 | C17: 廉租住房支出
A18: 十三、国有土地使用权出让收入 | B18: 50,000 | C18: 支付破产或改制企业职工安置费
A19: 土地出让价款收入 | B19: 50,000 | C19: 棚户区改造支出
A20: 补缴的土地价款 | C20: 公共租赁住房支出
A21: 划拨土地收入 | C21: 其他国有土地使用权出让收入安排的支出 | D21: 33,700
A22: 缴纳新增建设用地土地有偿使用费 | C22: 城市公用事业附加安排的支出 | D22: 0
A23: 其他土地出让收入 | C23: 城市公共设施
A24: 十四、大中型水库库区基金收入 | C24: 其他城市公用事业附加安排的支出
A25: 十五、彩票公益金收入 | B25: 0 | C25: 国有土地收益基金支出 | D25: 0
A26: 福利彩票公益金收入 | C26: 其他国有土地收益基金支出
A27: 体育彩票公益金收入 | C27: 农业土地开发资金支出
A28: 十六、城市基础设施配套费收入 | B28: 1,380 | C28: 城市基础设施配套费安排的支出 | D28: 1,380
A29: 十七、污水处理费收入 | B29: 1,200 | C29: 城市公共设施 | D29: 1,380
A30: 十八、国家重大水利工程建设基金收入 | B30: 0 | C30: 污水处理费安排的支出 | D30: 1,200
A31: 南水北调工程建设资金 | C31: 五、农林水支出
A32: 三峡工程后续工作资金 | C32: 六、交通运输支出 | D32: 55
A33: 省级重大水利工程建设资金 | C33: 车辆通行费安排的支出 | D33: 55
A34: 十九、车辆通行费 | B34: 55 | C34: 其他车辆通行费安排的支出 | D34: 55
A35: 二十、其他政府性基金收入 | B35: 30,000 | C35: 七、资源勘探信息等支出 | D35: 0
A36: 旱改水指标交易 | B36: 20000 | C36: 散装水泥专项资金支出 | D36: 0
A37: 其他砂石收入 | B37: 10000 | C37: 其他散装水泥专项资金支出
C38: 八、地方政府专项债务付息支出 | D38: 4,132
C39: 九、其他支出 | D39: 25,868
C40: 其他政府性基金支出 | D40: 25,868
A41: 收入合计 | B41: 82,635 | C41: 支出合计 | D41: 79,985
A42: 转移性收入 | B42: 4,600 | C42: 转移性支出 | D42: 7,250
A43: 政府性基金转移收入 | B43: 4,600 | C43: 政府性基金转移支付 | D43: 0
A44: 政府性基金补助收入 | B44: 4,600 | C44: 政府性基金上解支出
A45: 上年结余收入 | C45: 调出资金 | D45: 7,250
A46: 地方政府专项债务转贷收入 | C46: 地方政府专项债务转贷支出
C47: 地方政府专项债务还本支出
A48: 调入资金 | C48: 年终结余
A49: 收入总计 | B49: 87,235 | C49: 支出总计 | D49: 87,235

Sheet 表11-1
A1: 表11-1
A2: 2022年政府性基金预算收入表
B3: 单位：万元
A4: 收 入
A5: 项 目 | B5: 预算数
A6: 一、农网还贷资金收入
A7: 二、海南省高等级公路车辆通行附加费收入
A8: 三、港口建设费收入
A9: 四、散装水泥专项资金收入
A10: 五、新型墙体材料专项基金收入
A11: 六、旅游发展基金收入
A12: 七、新菜地开发建设基金收入
A13: 八、新增建设用地土地有偿使用费收入
A14: 九、南水北调工程建设基金收入
A15: 十、城市公用事业附加收入
A16: 十一、国有土地收益基金收入
A17: 十二、农业土地开发资金收入
A18: 十三、国有土地使用权出让收入 | B18: 50,000
A19: 土地出让价款收入 | B19: 50,000
A20: 补缴的土地价款
A21: 划拨土地收入
A22: 缴纳新增建设用地土地有偿使用费
A23: 其他土地出让收入
A24: 十四、大中型水库库区基金收入
A25: 十五、彩票公益金收入 | B25: 0
A26: 福利彩票公益金收入
A27: 体育彩票公益金收入
A28: 十六、城市基础设施配套费收入 | B28: 1,380
A29: 十七、污水处理费收入 | B29: 1,200
A30: 十八、国家重大水利工程建设基金收入 | B30: 0
A31: 南水北调工程建设资金
A32: 三峡工程后续工作资金
A33: 省级重大水利工程建设资金
A34: 十九、车辆通行费 | B34: 55
A35: 二十、其他政府性基金收入 | B35: 30,000
A36: 旱改水指标交易 | B36: 20000
A37: 其他砂石收入 | B37: 10000
A41: 收入合计 | B41: 82,635
A42: 转移性收入 | B42: 4,600
A43: 政府性基金转移收入 | B43: 4,600
A44: 政府性基金补助收入 | B44: 4,600
A45: 上年结余收入
A46: 地方政府专项债务转贷收入
A48: 调入资金
A49: 收入总计 | B49: 87,235

Sheet 表11-2
A1: 表11-2
A2: 2022年政府性基金预算支出表
B3: 单位：万元
A4: 项 目 | B4: 预算数
A5: 一、文化体育与传媒支出
A6: 二、社会保障和就业支出 | B6: 4,600
A7: 三、节能环保支出
A8: 四、城乡社区支出 | B8: 45,330
A9: 国有土地使用权出让收入安排的支出 | B9: 42,750
A10: 征地和拆迁补偿支出 | B10: 500
A11: 土地开发支出
A12: 城市建设支出 | B12: 5,000
A13: 农村基础设施建设支出 | B13: 2,500
A14: 补助被征地农民支出
A15: 土地出让业务支出 | B15: 1,050
A16: 廉租住房支出
A17: 支付破产或改制企业职工安置费
A18: 棚户区改造支出
A19: 公共租赁住房支出
A20: 其他国有土地使用权出让收入安排的支出 | B20: 33,700
A21: 城市公用事业附加安排的支出 | B21: 0
A22: 城市公共设施
A23: 其他城市公用事业附加安排的支出
A24: 国有土地收益基金支出 | B24: 0
A25: 其他国有土地收益基金支出
A26: 农业土地开发资金支出
A27: 城市基础设施配套费安排的支出 | B27: 1,380
A28: 城市公共设施 | B28: 1,380
A29: 污水处理费安排的支出 | B29: 1,200
A30: 五、农林水支出
A31: 六、交通运输支出 | B31: 55
A32: 车辆通行费安排的支出 | B32: 55
A33: 其他车辆通行费安排的支出 | B33: 55
A34: 七、资源勘探信息等支出 | B34: 0
A35: 散装水泥专项资金支出 | B35: 0
A36: 其他散装水泥专项资金支出
A37: 八、地方政府专项债务付息支出 | B37: 4,132
A38: 九、其他支出 | B38: 25,868
A39: 其他政府性基金支出 | B39: 25,868
A40: 支出合计 | B40: 79,985
A41: 转移性支出 | B41: 7,250
A42: 政府性基金转移支付 | B42: 0
A43: 政府性基金上解支出
A44: 调出资金 | B44: 7,250
A45: 地方政府专项债务转贷支出
A46: 地方政府专项债务还本支出
A47: 年终结余
A48: 支出总计 | B48: 87,235

Sheet 表12
A1: 表12
A2: 2022年本级政府性基金支出表
C3: 单位：万元
A4: 项 目 | B4: 功能科目 | C4: 预算数
A5: 一、文化体育与传媒支出
A6: 二、社会保障和就业支出 | B6: 208 | C6: 4,600
A7: 移民补助 | B7: 2082201 | C7: 4,600
A8: 三、节能环保支出
A9: 四、城乡社区支出 | B9: 212 | C9: 45,330
A10: 国有土地使用权出让收入安排的支出 | B10: 21208 | C10: 42,750
A11: 征地和拆迁补偿支出 | B11: 2120801 | C11: 500
A12: 土地开发支出 | B12: 2120802
A13: 城市建设支出 | B13: 2120803 | C13: 5,000
A14: 农村基础设施建设支出 | B14: 2120804 | C14: 2,500
A15: 补助被征地农民支出 | B15: 2120805
A16: 土地出让业务支出 | B16: 2120806 | C16: 1,050
A17: 廉租住房支出 | B17: 2120807
A18: 支付破产或改制企业职工安置费 | B18: 2120809
A19: 棚户区改造支出 | B19: 2120810
A20: 公共租赁住房支出 | B20: 2120811
A21: 其他国有土地使用权出让收入安排的支出 | B21: 2120899 | C21: 33,700
A22: 城市公用事业附加安排的支出 | C22: 0
A23: 城市公共设施
A24: 其他城市公用事业附加安排的支出
A25: 国有土地收益基金支出 | C25: 0
A26: 其他国有土地收益基金支出
A27: 农业土地开发资金支出
A28: 城市基础设施配套费安排的支出 | B28: 21213 | C28: 1,380
A29: 城市公共设施 | B29: 2121301 | C29: 1,380
A30: 污水处理费安排的支出 | B30: 2121499 | C30: 1,200
A31: 五、农林水支出
A32: 六、交通运输支出 | B32: 214 | C32: 55
A33: 车辆通行费安排的支出 | B33: 21462 | C33: 55
A34: 其他车辆通行费安排的支出 | B34: 2146299 | C34: 55
A35: 七、资源勘探信息等支出 | C35: 0
A36: 散装水泥专项资金支出 | C36: 0
A37: 其他散装水泥专项资金支出
A38: 八、地方政府专项债务付息支出 | B38: 232 | C38: 4,132
A39: 其他政府性基金债券付息支出 | B39: 2320499 | C39: 4,132
A40: 九、其他支出 | B40: 229 | C40: 25,868
A41: 其他政府性基金支出 | B41: 2290401 | C41: 25,868
A42: 支出合计 | C42: 79,985

Sheet 表13
A2: 2022年沅江市政府性基金转移支付情况表
B3: 单位：万元
A4: 项目 | B4: 预算数
A5: 一、国有土地收益基金收入
A6: 二、农业土地开发资金收入
A7: 三、国有土地使用权出让收入
A8: 土地出让价款收入
A9: 补缴的土地价款
A10: 划拨土地收入
A11: 其他土地出让收入
A12: 四、大中型水库库区基金收入 | B12: 4,600
A13: 五、彩票公益金收入
A14: 福利彩票公益金收入
A15: 体育彩票公益金收入
A16: 六、城市基础设施配套费收入
A17: 七、小型水库移民扶助基金收入
A18: 八、车辆通行费收入
A19: 九、污水处理费收入
A20: 十、其他政府性基金收入
A22: 合计 | B22: =SUM(B12+B13+B20) -> 4,600

Sheet 13-1
A2: 2022年沅江市政府性基金转移支付情况表（分地区）
B3: 单位：万元
A4: 地 区 | B4: 预算数
A5: 胭脂湖街道
A6: 琼湖街道
A7: 新湾镇
A8: 南嘴镇
A9: 草尾镇
A10: 阳罗洲镇
A11: 四季红镇
A12: 黄茅洲镇
A13: 南大膳镇
A14: 共华镇
A15: 泗湖山镇
A16: 茶盘洲镇
A17: 合计
A18: 说明：我市2022年政府性基金转移支付无提前下达数据

Sheet 13.2
A2: 2022年沅江市政府性基金转移支付情况表（分项目）
B3: 单位：万元
A4: 项目 | B4: 预算数
A5: 一、国有土地收益基金收入
A6: 二、农业土地开发资金收入
A7: 三、国有土地使用权出让收入
A8: 土地出让价款收入
A9: 补缴的土地价款
A10: 划拨土地收入
A11: 其他土地出让收入
A12: 四、大中型水库库区基金收入 | B12: 4,600
A13: 五、彩票公益金收入
A14: 福利彩票公益金收入
A15: 体育彩票公益金收入
A16: 六、城市基础设施配套费收入
A17: 七、小型水库移民扶助基金收入
A18: 八、车辆通行费收入
A19: 九、污水处理费收入
A20: 十、其他政府性基金收入
A22: 合计 | B22: =SUM(B12+B13+B20) -> 4,600

Sheet 表14
A1: 2021年度限额下达表
O2: 单位：万元
A3: 地区编码 | B3: 地区名称 | C3: 下达日期 | D3: 下达类型 | E3: 债务总限额 | H3: 新增债务限额
E4: 合计 | F4: 一般债务总限额 | G4: 专项债务总限额 | H4: 合计 | I4: 新增一般债务限额 | J4: 其中：新增外债限额 | K4: 新增专项债务限额 | L4: 新增土地储备专项债务限额 | M4: 新增收费公路专项债务限额 | N4: 新增棚改专项债务限额 | O4: 新增其他专项债务限额
A5: 430981 | B5: 沅江市 | C5: 2021-12-31 | D5: 调整 | E5: 513,793.00 | F5: 340,243.00 | G5: 173,550.00 | H5: 102,100.00 | I5: 18,400.00 | J5: 0.00 | K5: 83,700.00 | L5: 0.00 | M5: 0.00 | N5: 0.00 | O5: 0.00
A6: 沅江市小计 | E6: 513,793.00 | F6: 340,243.00 | G6: 173,550.00 | H6: 102,100.00 | I6: 18,400.00 | J6: 0.00 | K6: 83,700.00 | L6: 0.00 | M6: 0.00 | N6: 0.00 | O6: 0.00

Sheet 表15
A1: 截止2021年12月政府债券余额汇总表
A3: 地区：430981 沅江市 | D3: 截止期间：2021年12月 | K3: 单位：万元
A4: 地区 | B4: 余额总计 | C4: 新增债券 | F4: 置换债券 | I4: 偿还到期政府债券
C5: 合计 | D5: 一般债券 | E5: 专项债券 | F5: 合计 | G5: 一般债券 | H5: 专项债券 | I5: 合计 | J5: 一般债券 | K5: 专项债券
A6: 沅江市 | B6: 512,803.66 | C6: 267,693.53 | D6: 94,143.53 | E6: 173,550.00 | F6: 188,200.86 | G6: 188,200.86 | H6: 0.00 | I6: 56,909.27 | J6: 56,909.27 | K6: 0.00

Sheet 表16
A2: 2022年沅江市国有资本经营预算收支总表
D3: 单位：千元
A4: 收 入 | C4: 支 出
A5: 项 目 | B5: 本年预算 | C5: 项 目 | D5: 本年预算
A6: 一、利润收入 | C6: 一、社会保障和就业支出
C7: 二、国有资本经营预算支出
A8: 二、股利、股息收入 | C8: 其他国有资本经营预算支出
A9: 琼湖投资公司 | C9: 三、转移性支出
A10: 桔城投资公司 | C10: 调出资金
A13: 三、产权转让收入
A15: 四、清算收入
A17: 五、其他国有资本经营收入
A24: 本年收入合计 | C24: 本年支出合计
A25: 注：我市2022未编制国有资本经营预算

Sheet 表17
A2: 2022年沅江市国有资本经营预算收入表
B3: 单位：千元
A4: 收 入
A5: 项 目 | B5: 本年预算
A6: 一、利润收入
A8: 二、股利、股息收入
A9: 琼湖投资公司
A10: 桔城投资公司
A13: 三、产权转让收入
A15: 四、清算收入
A17: 五、其他国有资本经营收入
A24: 本年收入合计
A25: 注：我市2022未编制国有资本经营预算

Sheet 表18
A2: 2022年沅江市国有资本经营预算支出表
B3: 单位：千元
A4: 支 出
A5: 项 目 | B5: 本年预算
A6: 一、社会保障和就业支出
A7: 二、国有资本经营预算支出
A8: 其他国有资本经营预算支出
A9: 三、转移性支出
A10: 调出资金
A24: 本年支出合计
A25: 注：我市2022未编制国有资本经营预算

Sheet 表18-1
A1: 表18-1
A2: 2022年本级国有资本经营预算支出表
B3: 单位：千元
A4: 支 出
A5: 项 目 | B5: 本年预算
A6: 一、社会保障和就业支出
A7: 二、国有资本经营预算支出
A8: 其他国有资本经营预算支出
A9: 三、转移性支出
A10: 调出资金
A24: 本年支出合计
A25: 注：我市2022未编制国有资本经营预算

Sheet 表18-2
A1: 表18-2
A2: 2022年国有资本经营预算转移支付表
B3: 单位：千元
A4: 支 出
A5: 项 目 | B5: 本年预算
A6: 一、社会保障和就业支出
A7: 二、国有资本经营预算支出
A8: 其他国有资本经营预算支出
A9: 三、转移性支出
A10: 调出资金
A24: 本年支出合计
A25: 注：我市2022未编制国有资本经营预算

Sheet 表19
A2: 2022年社会保险基金预算总表
A3: 区县（市）： | I3: 单位：万元
A4: 项 目 | B4: 合计 | C4: 企业养老保险基金 | D4: 机关事业养老保险基金 | E4: 城乡居民养老保险基金 | F4: 失业保险基金 | G4: 职工基本医疗(生育）保险基金 | H4: 城乡居民基本 医疗保险基金 | I4: 工伤保险基金
A5: 一、上年结余 | B5: 105457 | D5: 0 | E5: 68788 | F5: 2722 | G5: 19967 | H5: 11917 | I5: 2063
A6: 二、本年收入 | B6: 149570 | D6: 58170 | E6: 17479 | F6: 608 | G6: 14895 | H6: 56856 | I6: 1562
A7: 其中： 1、保险费收入 | B7: 67986 | D7: 25549 | E7: 6500 | F7: 505 | G7: 14601 | H7: 19319 | I7: 1512
A8: 2、利息收入 | B8: 860 | D8: 53 | E8: 130 | F8: 37 | G8: 260 | H8: 350 | I8: 30
A9: 3、财政补贴收入 | B9: 79695 | D9: 32000 | E9: 10848 | G9: 0 | H9: 36827 | I9: 20
A10: 4、其他收入 | B10: 396 | F10: 36 | G10: 0 | H10: 360
A11: 5、转移收入 | B11: 632 | D11: 568 | F11: 30 | G11: 34 | H11: 0
A12: 6、上级补助收入 | B12: 1 | E12: 1 | H12: 0
A13: 7、下级上解收入 | B13: 0 | H13: 0
A14: 三、本年支出 | B14: 146231 | D14: 58170 | E14: 13296 | F14: 1246 | G14: 14820 | H14: 56552 | I14: 2147
A15: 其中： 1、社会保险待遇支出 | B15: 143035 | D15: 58000 | E15: 13287 | F15: 963 | G15: 14736 | H15: 53902 | I15: 2147
A16: 2、其他支出 | B16: 0 | G16: 0
A17: 3、转移支出 | B17: 263 | D17: 170 | E17: 9 | G17: 84
A18: 4、补助下级支出 | B18: 0
A19: 5、上解上级支出 | B19: 2675 | F19: 25 | H19: 2650
A20: 6.基本医疗保险费支出 | B20: 207 | F20: 207
A21: 7.技能提升补贴支出 | B21: 1 | F21: 1
A22: 8.稳定岗位补贴支出 | B22: 50 | F22: 50
A23: 四、本年收支结余 | B23: 3339 | D23: 0 | E23: 4183 | F23: -638 | G23: 75 | H23: 304 | I23: -585
A24: 五、年末滚存结余 | B24: 108796 | D24: 0 | E24: 72971 | F24: 2084 | G24: 20042 | H24: 12221 | I24: 1478

Sheet 表20
A2: 2022年社会保险基金预算收入表
A3: 区县（市）： | I3: 单位：万元
A4: 项 目 | B4: 合计 | C4: 企业养老保险基金 | D4: 机关事业养老保险基金 | E4: 城乡居民养老保险基金 | F4: 失业保险基金 | G4: 职工基本医疗(生育）保险基金 | H4: 城乡居民基本 医疗保险基金 | I4: 工伤保险基金
A5: 一、上年结余 | B5: 105457 | D5: 0 | E5: 68788 | F5: 2722 | G5: 19967 | H5: 11917 | I5: 2063
A6: 二、本年收入 | B6: 149570 | D6: 58170 | E6: 17479 | F6: 608 | G6: 14895 | H6: 56856 | I6: 1562
A7: 其中： 1、保险费收入 | B7: 67986 | D7: 25549 | E7: 6500 | F7: 505 | G7: 14601 | H7: 19319 | I7: 1512
A8: 2、利息收入 | B8: 860 | D8: 53 | E8: 130 | F8: 37 | G8: 260 | H8: 350 | I8: 30
A9: 3、财政补贴收入 | B9: 79695 | D9: 32000 | E9: 10848 | G9: 0 | H9: 36827 | I9: 20
A10: 4、其他收入 | B10: 396 | F10: 36 | G10: 0 | H10: 360
A11: 5、转移收入 | B11: 632 | D11: 568 | F11: 30 | G11: 34 | H11: 0
A12: 6、上级补助收入 | B12: 1 | E12: 1 | H12: 0
A13: 7、下级上解收入 | B13: 0 | H13: 0

Sheet 表21
A2: 2022年社会保险基金支出表
A3: 区县（市）： | I3: 单位：万元
A4: 项 目 | B4: 合计 | C4: 企业养老保险基金 | D4: 机关事业养老保险基金 | E4: 城乡居民养老保险基金 | F4: 失业保险基金 | G4: 职工基本医疗(生育）保险基金 | H4: 城乡居民基本 医疗保险基金 | I4: 工伤保险基金
A5: 本年支出 | B5: 146231 | D5: 58170 | E5: 13296 | F5: 1246 | G5: 14820 | H5: 56552 | I5: 2147
A6: 其中： 1、社会保险待遇支出 | B6: 143035 | D6: 58000 | E6: 13287 | F6: 963 | G6: 14736 | H6: 53902 | I6: 2147
A7: 2、其他支出 | B7: 0 | G7: 0
A8: 3、转移支出 | B8: 263 | D8: 170 | E8: 9 | G8: 84
A9: 4、补助下级支出 | B9: 0
A10: 5、上解上级支出 | B10: 2675 | F10: 25 | H10: 2650
A11: 6.基本医疗保险费支出 | B11: 207 | F11: 207
A12: 7.技能提升补贴支出 | B12: 1 | F12: 1
A13: 8.稳定岗位补贴支出 | B13: 50 | F13: 50
A14: 四、本年收支结余 | B14: 3339 | D14: 0 | E14: 4183 | F14: -638 | G14: 75 | H14: 304 | I14: -585
A15: 五、年末滚存结余 | B15: 108796 | D15: 0 | E15: 72971 | F15: 2084 | G15: 20042 | H15: 12221 | I15: 1478

Sheet 表22
A2: 2021年沅江市政府债券还本付息明细表
C3: 单位：万元
A5: 项 目 | B5: 还本额 | C5: 付息额
A6: 一般债券 | B6: 22748.00 | C6: 11237.00
A7: 专项债券
A8: 合计 | B8: =SUM(B6:B7) -> 22748.00 | C8: =SUM(C6:C7) -> 11237.00

Sheet 表23
A1: 2021年一般债券资金使用安排情况表
D2: 单位：万元
B3: 一般债券
B4: 收入 | C4: 金额 | D4: 项目名称
A5: 2021年 | B5: 17400 | C5: 1500 | D5: 凌云塔学校新建运动场、综合楼和食堂建设项目
C6: 1000 | D6: 泗湖山初级中学建设项目
C7: 1226 | D7: 沅江市重要县乡道建设工程
C8: 220 | D8: 2020-2021危桥改造建设工程
C9: 1554 | D9: S317竹莲互通连接线
C10: 4000 | D10: S507茶盘洲至黄茅洲大桥南公路
C11: 1500 | D11: 沅江市太白小学建设项目
C12: 2000 | D12: S507茶盘洲至黄茅洲大桥南公路
C13: 2000 | D13: S313沅江草尾乐园至漉湖公路
C14: 1689 | D14: 农村户用卫生厕所改（新）建项目
C15: 711 | D15: 小型水库除险加固

Sheet 表24
A1: 2021年专项债券资金使用安排情况表
D2: 单位：万元
B3: 专项债券
B4: 收入 | C4: 支出明细 | D4: 项目名称
A5: 2021年 | B5: 83700 | C5: 20000 | D5: 人民医院内科住院大楼建设项目
C6: 26900 | D6: 大通湖垸区域性集中供水工程
C7: 20800 | D7: 沅江市城区公共停车场建设项目
C9: 16000 | D9: 沅江市粮食物资中心储备库建设项目

Sheet 表25
A2: 2022年沅江市政府债券还本付息明细表
C3: 单位：万元
A5: 项 目 | B5: 还本额 | C5: 付息额
A6: 一般债券 | B6: 69529.8821 | C6: 11296.00
A7: 专项债券 | C7: 6323.61
A8: 合计 | B8: =SUM(B6:B7) -> 69529.88 | C8: =SUM(C6:C7) -> 17619.61

Sheet 表十一（作废） (hidden)
A1: 表十一
A2: 市直部门单位专项明细表
A3: 单位：千元
A4: 单位名称 | B4: 功能科目 | C4: 项目名称 | D4: 经费拨款
A6: [001001]人大办 | B6: [2010101]行政运行 | C6: 常委会及主任会议专项经费 | D6: 200.00
A7: [001001]人大办 | B7: [2010101]行政运行 | C7: 中心工作专项工作经费 | D7: 100.00
A8: [001001]人大办 | B8: [2010101]行政运行 | C8: 三湘农产品质量安全经费 | D8: 60.00
A9: [001001]人大办 | B9: [2010101]行政运行 | C9: 民族团结行专项 | D9: 100.00
A10: [001001]人大办 | B10: [2010101]行政运行 | C10: 环保世界行专项 | D10: 90.00
A11: [001001]人大办 | B11: [2010101]行政运行 | C11: 三湘农民健康行专项 | D11: 100.00
A12: [001001]人大办 | B12: [2010101]行政运行 | C12: 上级专题调研及视察经费 | D12: 150.00
A13: [001001]人大办 | B13: [2010101]行政运行 | C13: 执法检查经费 | D13: 100.00
A14: [001001]人大办 | B14: [2010101]行政运行 | C14: 监督专项经费 | D14: 150.00
A15: [001001]人大办 | B15: [2010108]代表工作 | C15: 代表工作经费专项 | D15: 402.00
A16: [001001]人大办 | B16: [2010109]人大信访工作 | C16: 信访工作经费 | D16: 40.00
A17: [001001]人大办 | B17: [2010199]其他人大事务支出 | C17: 扶贫工作专项 | D17: 0.00
A18: [001001]人大办 | B18: [2010199]其他人大事务支出 | C18: 老干部专项经费 | D18: 0.00
A19: [001001]人大办 | B19: [2010199]其他人大事务支出 | C19: 委室调研经费专项 | D19: 200.00
A20: [001001]人大办 汇总 | D20: =SUBTOTAL(9,D6:D19) -> 1,692.00
A21: [001002]政协办 | B21: [2010201]行政运行 | C21: 委室调研经费 | D21: 350.00
A22: [001002]政协办 | B22: [2010202]一般行政管理事务 | C22: 全市委员调研经费 | D22: 199.20
A23: [001002]政协办 | B23: [2010202]一般行政管理事务 | C23: 走访外地委员经费 | D23: 70.00
A24: [001002]政协办 | B24: [2010202]一般行政管理事务 | C24: 委员活动及委员工作室工作经费 | D24: 150.00
A25: [001002]政协办 | B25: [2010205]委员视察 | C25: 委员视察经费 | D25: 70.00
A26: [001002]政协办 | B26: [2010206]参政议政 | C26: 双月协商工作经费 | D26: 50.00
A27: [001002]政协办 | B27: [2010206]参政议政 | C27: 民主监督及民主评议工作经费 | D27: 100.00
A28: [001002]政协办 | B28: [2010299]其他政协事务支出 | C28: 上级专题调研及考察经费 | D28: 200.00
A29: [001002]政协办 | B29: [2010299]其他政协事务支出 | C29: 经促会工作经费 | D29: 400.00
A30: [001002]政协办 汇总 | D30: =SUBTOTAL(9,D21:D29) -> 1,589.20
A31: [001003]市委办 | B31: [2013102]一般行政管理事务 | C31: 业务工作及运行维护专项经费 | D31: 321.50
A32: [001003]市委办 | B32: [2013102]一般行政管理事务 | C32: 公务车运行及维护 | D32: 60.00
A33: [001003]市委办 | B33: [2013102]一般行政管理事务 | C33: 调研工作经费 | D33: 310.00
A34: [001003]市委办 | B34: [2013102]一般行政管理事务 | C34: 市全面深化改革领导小组办公室工作经费 | D34: 100.00
A35: [001003]市委办 | B35: [2013102]一般行政管理事务 | C35: 市委保密工作经费 | D35: 80.00
A36: [001003]市委办 | B36: [2013102]一般行政管理事务 | C36: 市委政府保密专网租费 | D36: 52.00
A37: [001003]市委办 | B37: [2013102]一般行政管理事务 | C37: 机要通信专网租费及运行维护费 | D37: 330.00
A38: [001003]市委办 | B38: [2013102]一般行政管理事务 | C38: 督查专项经费 | D38: 330.00
A39: [001003]市委办 | B39: [2013102]一般行政管理事务 | C39: 《沅江工作》编印专项经费 | D39: 130.00
A40: [001003]市委办 | B40: [2013102]一般行政管理事务 | C40: 全市办公室主任业务培训工作经费 | D40: 70.00
A41: [001003]市委办 | B41: [2013102]一般行政管理事务 | C41: 市全面小康领导小组办公室工作经费 | D41: 120.00
A42: [001003]市委办 | B42: [2013102]一般行政管理事务 | C42: 扶贫工作专项经费 | D42: 80.00
A43: [001003]市委办 | B43: [2013102]一般行政管理事务 | C43: 电子政务内网运行维护经费 | D43: 0.00
A44: [001003]市委办 汇总 | D44: =SUBTOTAL(9,D31:D43) -> 1,983.50
A45: [001004]党史办 | B45: [2013102]一般行政管理事务 | C45: “申苏”专项 | D45: 30.00
A46: [001004]党史办 | B46: [2013102]一般行政管理事务 | C46: 联络组经费 | D46: 10.00
A47: [001004]党史办 | B47: [2013102]一般行政管理事务 | C47: 专题编写经费 | D47: 43.50
A48: [001004]党史办 | B48: [2013102]一般行政管理事务 | C48: 《党史专题》、《沅江纪事》、《益阳党史执政实录》编辑工作经费 | D48: 145.00
A49: [001004]党史办 汇总 | D49: =SUBTOTAL(9,D45:D48) -> 228.50
A50: [001005]机关事务服务中心 | B50: [2010302]一般行政管理事务 | C50: 非税收入执收成本 | D50: 0.00
A51: [001005]机关事务服务中心 汇总 | D51: =SUBTOTAL(9,D50) -> 0.00
A52: [001006]组织部 | B52: [2013201]行政运行 | C52: 大组工网建设 | D52: 35.50
A53: [001006]组织部 | B53: [2013201]行政运行 | C53: 党建工作专项经费 | D53: 662.50
A54: [001006]组织部 | B54: [2013202]一般行政管理事务 | C54: 信息调研工作经费 | D54: 50.00
A55: [001006]组织部 | B55: [2013202]一般行政管理事务 | C55: 选调生和大学生村官管理专项 | D55: 100.00
A56: [001006]组织部 | B56: [2013202]一般行政管理事务 | C56: 党代表调研活动经费 | D56: 300.00
A57: [001006]组织部 | B57: [2013202]一般行政管理事务 | C57: 两新工委及指导员津贴 | D57: 400.00
A58: [001006]组织部 | B58: [2013203]机关服务 | C58: 组工干部培训工作经费 | D58: 122.00
A59: [001006]组织部 | B59: [2013299]其他组织事务支出 | C59: 干部档案管理与信息化建设工作经费 | D59: 50.00
A60: [001006]组织部 | B60: [2013299]其他组织事务支出 | C60: 驻村办工作经费 | D60: 50.00
A61: [001006]组织部 | B61: [2013299]其他组织事务支出 | C61: 领导班子年度考核专项经费 | D61: 90.00
A62: [001006]组织部 | B62: [2013299]其他组织事务支出 | C62: 绩效考核办工作经费 | D62: 260.00
A63: [001006]组织部 | B63: [2013302]一般行政管理事务 | C63: 党员教育经费 | D63: 400.00
A64: [001006]组织部 | B64: [2013302]一般行政管理事务 | C64: 干部异地培训经费 | D64: 200.00
A65: [001006]组织部 | B65: [2013302]一般行政管理事务 | C65: 七一表彰 | D65: 300.00
A66: [001006]组织部 汇总 | D66: =SUBTOTAL(9,D52:D65) -> 3,020.00
A67: [001008]统战部 | B67: [2013401]行政运行 | C67: 民族事业补助及宗教执法费用 | D67: 60.00
A68: [001008]统战部 | B68: [2013401]行政运行 | C68: 业务费专项 | D68: 32.00
A69: [001008]统战部 | B69: [2013401]行政运行 | C69: 四大宗教团体管理费用 | D69: 60.00
A70: [001008]统战部 | B70: [2013401]行政运行 | C70: 台办工作经费 | D70: 50.00
A71: [001008]统战部 | B71: [2013401]行政运行 | C71: 黄埔同学会工作经费 | D71: 5.00
A72: [001008]统战部 | B72: [2013401]行政运行 | C72: 建立及维护非公经济代表人士评价体系 | D72: 40.00
A73: [001008]统战部 | B73: [2013401]行政运行 | C73: 专项工作经费 | D73: 423.00
A74: [001008]统战部 | B74: [2013402]一般行政管理事务 | C74: 四同创建工作经费 | D74: 80.00
A75: [001008]统战部 | B75: [2013402]一般行政管理事务 | C75: 党外代表人士队伍建设 | D75: 40.00
A76: [001008]统战部 | B76: [2013402]一般行政管理事务 | C76: 党外知识分子联谊会工作经费 | D76: 120.00
A77: [001008]统战部 汇总 | D77: =SUBTOTAL(9,D67:D76) -> 910.00
A78: [001009]政法委 | B78: [2013102]一般行政管理事务 | C78: 国安工作经费 | D78: 111.00
A79: [001009]政法委 | B79: [2013102]一般行政管理事务 | C79: 维稳工作经费 | D79: 198.50
A80: [001009]政法委 | B80: [2013102]一般行政管理事务 | C80: 法学会工作经费 | D80: 100.00
A81: [001009]政法委 | B81: [2013102]一般行政管理事务 | C81: 扫黑除恶专项斗争工作经费 | D81: 200.00
A82: [001009]政法委 汇总 | D82: =SUBTOTAL(9,D78:D81) -> 609.50
A83: [001010]工商联 | B83: [2012801]行政运行 | C83: "四同创建"工作经费 | D83: 30.00
A84: [001010]工商联 | B84: [2012802]一般行政管理事务 | C84: 招商引资 | D84: 30.00
A85: [001010]工商联 | B85: [2012802]一般行政管理事务 | C85: 精准扶贫 | D85: 30.00
A86: [001010]工商联 | B86: [2012802]一般行政管理事务 | C86: 商会扶持资金 | D86: 70.00
A87: [001010]工商联 | B87: [2012901]行政运行 | C87: 专项工作经费 | D87: 13.00
A88: [001010]工商联 | B88: [2012901]行政运行 | C88: 非公党建工作经费 | D88: 10.00
A89: [001010]工商联 | B89: [2012901]行政运行 | C89: 商会建设、企业维权及教育培训等经费 | D89: 106.00
A90: [001010]工商联 汇总 | D90: =SUBTOTAL(9,D83:D89) -> 289.00
A91: [001011]妇联 | B91: [2012950]事业运行 | C91: 妇女儿童工作经费 | D91: 370.00
A92: [001011]妇联 | B92: [2012950]事业运行 | C92: 乡镇妇联组织工作经费 | D92: 240.00
A93: [001011]妇联 汇总 | D93: =SUBTOTAL(9,D91:D92) -> 610.00
A94: [001012]团委 | B94: [2012902]一般行政管理事务 | C94: 青少年事业发展专项 | D94: 280.00
A95: [001012]团委 | B95: [2012902]一般行政管理事务 | C95: 乡镇大团委建设项目 | D95: 280.00
A96: [001012]团委 汇总 | D96: =SUBTOTAL(9,D94:D95) -> 560.00
A97: [001013]“610”办 | B97: [2013601]行政运行 | C97: 办案经费 | D97: 20.00
A98: [001013]“610”办 | B98: [2013601]行政运行 | C98: 反邪教外勤工作经费 | D98: 20.00
A99: [001013]“610”办 | B99: [2013601]行政运行 | C99: 反邪教工作经费 | D99: 50.00
A100: [001013]“610”办 | B100: [2013601]行政运行 | C100: 教育转化及租车 | D100: 40.00
A101: [001013]“610”办 | B101: [2013601]行政运行 | C101: 反邪教联防联控费用 | D101: 40.00
A102: [001013]“610”办 汇总 | D102: =SUBTOTAL(9,D97:D101) -> 170.00
A103: [001014]政府办 | B103: [2010302]一般行政管理事务 | C103: 督查专项经费 | D103: 120.00
A104: [001014]政府办 | B104: [2010302]一般行政管理事务 | C104: 法律顾问工作专项经费 | D104: 300.00
A105: [001014]政府办 | B105: [2010302]一般行政管理事务 | C105: 政府工作报告专项经费 | D105: 80.00
A106: [001014]政府办 | B106: [2010302]一般行政管理事务 | C106: 法制工作专项经费 | D106: 100.00
A107: [001014]政府办 | B107: [2010302]一般行政管理事务 | C107: 应急专项经费 | D107: 200.00
A108: [001014]政府办 | B108: [2010302]一般行政管理事务 | C108: 提案议案办理经费 | D108: 80.00
A109: [001014]政府办 | B109: [2010302]一般行政管理事务 | C109: 政府法制专项经费 | D109: 100.00
A110: [001014]政府办 | B110: [2010302]一般行政管理事务 | C110: 打击非法集资专项经费 | D110: 91.00
A111: [001014]政府办 | B111: [2010302]一般行政管理事务 | C111: 应急平台及12345平台维修费 | D111: 60.00
A112: [001014]政府办 | B112: [2010302]一般行政管理事务 | C112: 专项工作经费 | D112: 100.00
A113: [001014]政府办 | B113: [2010302]一般行政管理事务 | C113: 公务用车运行维护经费 | D113: 60.00
A114: [001014]政府办 | B114: [2010302]一般行政管理事务 | C114: 市政府重点办专项经费 | D114: 100.00
A115: [001014]政府办 | B115: [2010302]一般行政管理事务 | C115: 市志办工作专项经费 | D115: 80.00
A116: [001014]政府办 | B116: [2010302]一般行政管理事务 | C116: 业务工作及运行维护专项 | D116: 225.00
A117: [001014]政府办 | B117: [2010302]一般行政管理事务 | C117: 重大决策调研专项经费 | D117: 200.00
A118: [001014]政府办 | B118: [2010302]一般行政管理事务 | C118: 报刊杂志及政府专项费用 | D118: 70.00
A119: [001014]政府办 | B119: [2010302]一般行政管理事务 | C119: 电视电话会议系统租金及宽带费 | D119: 80.00
A120: [001014]政府办 | B120: [2010302]一般行政管理事务 | C120: 市长热线专项经费 | D120: 80.00
A121: [001014]政府办 汇总 | D121: =SUBTOTAL(9,D103:D120) -> 2,126.00
A122: [001015]政务中心 | B122: [2010303]机关服务 | C122: 临聘人员经费 | D122: 360.00
A123: [001015]政务中心 | B123: [2010306]政务公开审批 | C123: 并联审批专项 | D123: 50.00
A124: [001015]政务中心 | B124: [2010306]政务公开审批 | C124: 中心运转经费 | D124: 270.00
A125: [001015]政务中心 汇总 | D125: =SUBTOTAL(9,D122:D124) -> 680.00
A126: [001016]信访局 | B126: [2010308]信访事务 | C126: 接访劝返经费 | D126: 70.00
A127: [001016]信访局 | B127: [2010308]信访事务 | C127: 特殊信访人员特困救助金 | D127: 80.00
A128: [001016]信访局 汇总 | D128: =SUBTOTAL(9,D126:D127) -> 150.00
A129: [001017]纪委 | B129: [2011101]行政运行 | C129: 反腐倡廉宣传教育工作专项 | D129: 140.00
A130: [001017]纪委 | B130: [2011101]行政运行 | C130: 作风办问责办工作经费 | D130: 160.00
A131: [001017]纪委 | B131: [2011101]行政运行 | C131: 廉政教育基地和办案点运行维护费 | D131: 80.00
A132: [001017]纪委 | B132: [2011101]行政运行 | C132: 乡镇纪检组织建设工作经费 | D132: 160.00
A133: [001017]纪委 | B133: [2011101]行政运行 | C133: 执法用车运行维护费 | D133: 120.00
A134: [001017]纪委 | B134: [2011101]行政运行 | C134: 纪检监察一体化管理联动工作经费 | D134: 150.00
A135: [001017]纪委 汇总 | D135: =SUBTOTAL(9,D129:D134) -> 810.00
A136: [001018]编委 | B136: [2013102]一般行政管理事务 | C136: 专项工作经费 | D136: 124.50
A137: [001018]编委 | B137: [2013102]一般行政管理事务 | C137: 大编委工作经费 | D137: 15.50
A138: [001018]编委 | B138: [2013102]一般行政管理事务 | C138: 年报和中文域名注册经费 | D138: 20.00
A139: [001018]编委 | B139: [2013102]一般行政管理事务 | C139: 事业法人年检登记费 | D139: 40.00
A140: [001018]编委 | B140: [2013102]一般行政管理事务 | C140: 全市行政事业单位中文域名经费 | D140: 100.00
A141: [001018]编委 汇总 | D141: =SUBTOTAL(9,D136:D140) -> 300.00
A142: [001019]审计局 | B142: [2010804]审计业务 | C142: 预算执行及行政专项审计经费 | D142: 100.00
A143: [001019]审计局 | B143: [2010804]审计业务 | C143: 经济责任审计经费 | D143: 120.00
A144: [001019]审计局 | B144: [2010804]审计业务 | C144: “金审”工程及信息化建设 | D144: 50.00
A145: [001019]审计局 | B145: [2010804]审计业务 | C145: 聘用专家审计费 | D145: 80.00
A146: [001019]审计局 | B146: [2010804]审计业务 | C146: 学习培训经费 | D146: 100.00
A147: [001019]审计局 汇总 | D147: =SUBTOTAL(9,D142:D146) -> 450.00
A148: [001020001]财政局机关 | B148: [2010601]行政运行 | C148: 财政监督专项经费 | D148: 30.00
A149: [001020001]财政局机关 | B149: [2010601]行政运行 | C149: 财政决算编制及培训专项 | D149: 237.50
A150: [001020001]财政局机关 | B150: [2010601]行政运行 | C150: 非税收入成本 | D150: 0.00
A151: [001020001]财政局机关 | B151: [2010601]行政运行 | C151: 预算编制及调查专项经费 | D151: 100.00
A152: [001020001]财政局机关 | B152: [2010601]行政运行 | C152: 财政干部教育培训专项 | D152: 200.00
A153: [001020001]财政局机关 | B153: [2010601]行政运行 | C153: 国库集中支付清算专项 | D153: 300.00
A154: [001020001]财政局机关 | B154: [2010601]行政运行 | C154: 互联网+监督专项经费 | D154: 200.00
A155: [001020001]财政局机关 | B155: [2010601]行政运行 | C155: 国有资产管理专项 | D155: 500.00
A156: [001020001]财政局机关 | B156: [2010601]行政运行 | C156: 绩效评价专项经费 | D156: 300.00
A157: [001020001]财政局机关 | B157: [2010602]一般行政管理事务 | C157: 票据网络维护专项经费 | D157: 589.00
A158: [001020001]财政局机关 汇总 | D158: =SUBTOTAL(9,D148:D157) -> 2,456.50
A159: [001020002]非税局 | B159: [2010601]行政运行 | C159: 非税征管专项经费 | D159: 19.00
A160: [001020002]非税局 | B160: [2010602]一般行政管理事务 | C160: 非税票据工本费 | D160: 300.00
A161: [001020002]非税局 汇总 | D161: =SUBTOTAL(9,D159:D160) -> 319.00
A162: [001020003]乡财局 | B162: [2010601]行政运行 | C162: 乡财乡用网络租凭维护专项经费 | D162: 490.00
A163: [001020003]乡财局 | B163: [2010601]行政运行 | C163: 乡镇财政财务管理专项经费 | D163: 714.50
A164: [001020003]乡财局 汇总 | D164: =SUBTOTAL(9,D162:D163) -> 1,204.50
A165: [001020004]投资评审中心 | B165: [2010601]行政运行 | C165: 投资评审专项经费 | D165: 0.00
A166: [001020004]投资评审中心 汇总 | D166: =SUBTOTAL(9,D165) -> 0.00
A167: [001021]老干局 | B167: [2010201]行政运行 | C167: 老年大学活动经费 | D167: 150.00
A168: [001021]老干局 | B168: [2010201]行政运行 | C168: 业务费 | D168: 20.00
A169: [001021]老干局 | B169: [2010201]行政运行 | C169: 老年设备维修费 | D169: 10.00
A170: [001021]老干局 | B170: [2010201]行政运行 | C170: 特困离退休干部及遗孀帮扶专项 | D170: 100.00
A171: [001021]老干局 | B171: [2010201]行政运行 | C171: 老年协会活动经费 | D171: 200.00
A172: [001021]老干局 | B172: [2010201]行政运行 | C172: 老干特需经费 | D172: 690.00
A173: [001021]老干局 | B173: [2010201]行政运行 | C173: 老年体协活动经费 | D173: 50.00
A174: [001021]老干局 | B174: [2010201]行政运行 | C174: 老年活动用车 | D174: 20.00
A175: [001021]老干局 | B175: [2010201]行政运行 | C175: 关工委工作经费 | D175: 50.00
A176: [001021]老干局 | B176: [2010201]行政运行 | C176: 离退休党工委工作经费 | D176: 50.00
A177: [001021]老干局 | B177: [2010201]行政运行 | C177: 老年活动中心专项经费 | D177: 350.00
A178: [001021]老干局 | B178: [2010302]一般行政管理事务 | C178: 老年活动工作经费 | D178: 120.00
A179: [001021]老干局 汇总 | D179: =SUBTOTAL(9,D167:D178) -> 1,810.00
A180: [001022]总工会 | B180: [2012901]行政运行 | C180: 行政事业单位工会经费 | D180: 1,050.00
A181: [001022]总工会 | B181: [2012901]行政运行 | C181: 帮扶基金 | D181: 68.00
A182: [001022]总工会 汇总 | D182: =SUBTOTAL(9,D180:D181) -> 1,118.00
A183: [001023]统计局 | B183: [2010502]一般行政管理事务 | C183: 专项工作经费 | D183: 40.00
A184: [001023]统计局 | B184: [2010502]一般行政管理事务 | C184: 统计年鉴印刷费 | D184: 20.00
A185: [001023]统计局 | B185: [2010505]专项统计业务 | C185: 五个百户调查及差旅费 | D185: 166.00
A186: [001023]统计局 | B186: [2010505]专项统计业务 | C186: “企业一套表”联网直报经费 | D186: 100.00
A187: [001023]统计局 | B187: [2010507]专项普查活动 | C187: 第四次经济普查经费 | D187: 500.00
A188: [001023]统计局 | B188: [2010508]统计抽样调查 | C188: 粮食产量抽样调查经费 | D188: 222.00
A189: [001023]统计局 汇总 | D189: =SUBTOTAL(9,D183:D188) -> 1,048.00
A190: [001024]信息中心 | B190: [2010305]专项业务活动 | C190: 社区接入电子政务外网电路租赁 | D190: 129.80
A191: [001024]信息中心 | B191: [2010502]一般行政管理事务 | C191: 水电及安防费用 | D191: 139.00
A192: [001024]信息中心 | B192: [2010502]一般行政管理事务 | C192: 专项工作经费 | D192: 29.00
A193: [001024]信息中心 | B193: [2010504]信息事务 | C193: 中心机房及网络维护费 | D193: 172.00
A194: [001024]信息中心 | B194: [2010504]信息事务 | C194: 网络建设专项 | D194: 130.00
A195: [001024]信息中心 | B195: [2010504]信息事务 | C195: 政府网站建设管理专项经费 | D195: 230.00
A196: [001024]信息中心 | B196: [2010504]信息事务 | C196: 全市电子政务网络运行维护费用 | D196: 150.00
A197: [001024]信息中心 | B197: [2010504]信息事务 | C197: 电子政务外网平台一期工程设备维护费 | D197: 103.00
A198: [001024]信息中心 | B198: [2010504]信息事务 | C198: 电子政务外网链路及城域网光纤租费 | D198: 578.00
A199: [001024]信息中心 汇总 | D199: =SUBTOTAL(9,D190:D198) -> 1,660.80
A200: [001025]国库集中支付核算中心 | B200: [2010602]一般行政管理事务 | C200: 年终决算专项费用 | D200: 50.00
A201: [001025]国库集中支付核算中心 | B201: [2010602]一般行政管理事务 | C201: 财务费用 | D201: 360.00
... 568 more rows
